[Event "Germany Countries-chT Youth 2022"]
[Site "Wiesbaden"]
[Date "2022.10.02"]
[Round "3"]
[White "Stelmaszyk, Nico"]
[Black "Krastev, Alexander"]
[Result "1-0"]
[ECO "C55"]
[WhiteElo "2355"]
[BlackElo "2431"]
[Annotator "TA"]
[PlyCount "101"]
[EventDate "2022.09.28"]
[EventType "team-tourn"]
[EventRounds "7"]
[EventCountry "GER"]
[SourceTitle "playchess.com"]
[Source "ChessBase"]
[SourceQuality "1"]
[TimeControl "40/5400+30:1800+30"]

{[%evp 12,101,13,14,14,20,26,16,37,3,19,0,35,16,47,25,41,39,41,45,35,42,54,55,84,89,93,94,161,165,158,160,138,148,126,114,153,152,156,44,51,59,56,47,45,47,54,43,43,47,281,277,263,272,274,274,274,274,348,345,340,339,354,359,380,269,598,593,614,591,587,548,664,664,641,630,635,619,1066,1066,1574,863,2186,2006,2149,2104,29953,29944,29957,12843,4134,4132]} 1. e4 {[%emt 0:00:03] ChessBase II} e5 {[%emt 0:00:12]} 2. Nf3 {[%emt 0:00:04]} Nc6 {[%emt 0:00:05]} 3. Bc4 {[%emt 0:00:04]} Nf6 {[%emt 0:00:04]} 4. d3 {[%emt 0:00:04]} Be7 {[%emt 0:00:05]} 5. Nc3 {[%emt 0:00:05]} O-O {[%emt 0:00:44]} 6. O-O {[%emt 0:00:50]} d6 {[%emt 0:00:15]} 7. a3 {[%emt 0:00:05]} Be6 {[%emt 0:00:53] C55: Two Knights: 4 d3, 4 d4 exd4 5 e5 and Max Lange Attack.} 8. Nd5 {[%emt 0:00:06]} Qd7 {[%emt 0:00:27] 8...Nb8 is a critical line.} 9. Bg5 {[%emt 0:00:55] [#]} Ne8 $146 {The position is equal.} ({Predecessor:} 9... Bxd5 10. exd5 Nd4 11. Nxd4 exd4 12. Qf3 Rae8 13. Rae1 Bd8 14. h3 Qa4 15. Qd1 Qd7 {½-½ (55) Andreikin,D (2736)-Rapport,R (2702) Wijk aan Zee 2017 CBM 177 [ChessBase II]}) 10. c3 {[%emt 0:15:10]} Bd8 {[%emt 0:31:35]} 11. b4 {[%emt 0:19:35]} Kh8 {[%emt 0:03:49]} 12. Ne3 {[%emt 0:07:03]} f6 {[%emt 0:06:39]} 13. Bh4 {[%emt 0:02:18]} g5 {[%emt 0:00:53]} 14. Bg3 {[%emt 0:00:41]} Ng7 {[%emt 0:00:05]} 15. d4 {[%emt 0:03:41] [#] d5 is the strong threat.} Bxc4 {[%emt 0:00:29]} 16. Nxc4 {[%emt 0:00:06][%cal Rd4e5]} Qf7 {[%emt 0:00:07]} 17. Ne3 {[%emt 0:02:28]} h6 {[%emt 0:06:27]} 18. Qd3 {[%emt 0:02:08]} Ne7 {[%emt 0:02:16]} 19. c4 {[%emt 0:04:11]} exd4 {[%emt 0:18:18]} (19... f5 $16) 20. Nxd4 $18 {[%emt 0:02:14]} f5 {[%emt 0:00:03]} 21. f4 {[%emt 0:04:05] White has more active pieces.} g4 {[%emt 0:03:01]} 22. Be1 {[%emt 0:06:36]} Qg6 {[%emt 0:04:28]} 23. exf5 {[%emt 0:07:46]} Ngxf5 {[%emt 0:00:05]} 24. Bc3 {[%emt 0:02:43] Hoping for Nexf5.} Kh7 {[%emt 0:00:09]} 25. Nexf5 {[%emt 0:05:40]} ({Better is} 25. Rad1 $16) 25... Nxf5 $14 {[%emt 0:00:05]} 26. Nxf5 {[%emt 0:00:12]} Qxf5 {[%emt 0:10:48]} 27. Qxf5+ {[%emt 0:00:12]} ({Don't play} 27. Qd4 Bf6 28. Qd2 Rae8 $11) 27... Rxf5 {[%emt 0:00:01]} 28. Rae1 $36 {[%emt 0:00:30][%mdl 2048] White is more active.} a5 {[%emt 0:01:29]} 29. Re8 {[%emt 0:10:11]} axb4 {[%emt 0:00:59]} 30. axb4 {[%emt 0:00:25]} ({Much weaker is} 30. Bxb4 Kg7 $11) 30... Bf6 $2 {[%emt 0:04:06] Inhibits Bd4. Black cannot hold the game after this.} 31. Rxa8 $18 {[%emt 0:00:21]} Bxc3 {[%emt 0:00:03][%mdl 4096] Endgame KRR-KRB} 32. Re8 {[%emt 0:01:50]} Bxb4 {[%emt 0:02:26]} 33. Re7+ {[%emt 0:00:05]} Kg6 {[%emt 0:00:04]} 34. Rxc7 {[%emt 0:00:05]} Bc5+ {[%emt 0:00:12]} 35. Kh1 {[%emt 0:00:05]} b6 {[%emt 0:00:03]} 36. g3 {[%emt 0:03:35]} Rf8 {[%emt 0:00:03]} 37. Re7 {[%emt 0:00:48]} Kf5 {[%emt 0:02:08]} 38. Rh7 {[%emt 0:00:50]} Ke4 $2 {[%emt 0:03:33]} (38... Kg6 {is tougher.}) 39. Rxh6 {[%emt 0:00:37]} Kd3 {[%emt 0:00:03]} 40. Rg6 {[%emt 0:01:10]} Kxc4 {[%emt 0:00:06]} 41. f5 {[%emt 0:02:27][%cal Bf4f5,Bf5f6,Bf6f7][%mdl 32]} d5 {[%emt 0:00:27]} 42. f6 {[%emt 0:00:39]} d4 {[%emt 0:00:27]} 43. Rxg4 {[%emt 0:00:41]} Kc3 {[%emt 0:00:40]} 44. Rg7 {[%emt 0:11:57]} Rd8 {[%emt 0:03:55]} 45. f7 {[%emt 0:02:18] aiming for Rc1+.} d3 {[%emt 0:01:03]} 46. Rg8 {[%emt 0:00:06]} Bf8 {[%emt 0:01:12]} 47. g4 {[%emt 0:01:53][%cal Bg3g4,Bg4g5][%mdl 32] And now g5 would win.} d2 {[%emt 0:00:34]} 48. Kg2 {[%emt 0:00:56]} Kc2 {[%emt 0:05:54]} 49. g5 {[%emt 0:00:27]} d1=Q {[%emt 0:00:06]} 50. Rxd1 {[%emt 0:00:04]} Kxd1 {[%emt 0:00:10] [#]} 51. Rxf8 $1 {[%emt 0:01:05][%mdl 576] Promotion.  Weighted Error Value: White=0.15 (very precise) /Black=0.37} 1-0

[Event "Germany Countries-chT Youth 2022"]
[Site "Wiesbaden"]
[Date "2022.10.02"]
[Round "3"]
[White "Boder, Jan"]
[Black "Waffenschmidt, Lars"]
[Result "1-0"]
[ECO "C50"]
[WhiteElo "2341"]
[BlackElo "2302"]
[Annotator "TA"]
[PlyCount "79"]
[EventDate "2022.09.28"]
[EventType "team-tourn"]
[EventRounds "7"]
[EventCountry "GER"]
[SourceTitle "playchess.com"]
[Source "ChessBase"]
[SourceQuality "1"]
[TimeControl "40/5400+30:1800+30"]

{[%evp 18,79,0,0,0,-9,-8,-1,-5,-3,0,-7,0,-35,-35,-31,-31,-94,-62,-65,-59,-51,0,0,50,43,25,12,16,24,295,110,111,88,91,95,537,863,853,821,12827,7392,5565,844,849,748,791,822,788,747,1887,0,0,0,2610,2254,12840,12839,12842,12843,12843,12843,12843,12840]} 1. e4 {[%emt 0:00:06]} e5 {[%emt 0:00:09]} 2. Nf3 {[%emt 0:00:05]} Nc6 {[%emt 0:00:09]} 3. Bc4 {[%emt 0:00:16]} Bc5 {[%emt 0:00:12]} 4. d3 {[%emt 0:00:13]} Nf6 {[%emt 0:00:12]} 5. Nc3 {[%emt 0:00:10]} h6 {[%emt 0:00:23]} 6. O-O {[%emt 0:00:47]} O-O {[%emt 0:02:05]} 7. h3 {[%emt 0:00:37]} a6 {[%emt 0:02:02]} 8. Be3 {[%emt 0:00:55]} Bxe3 {[%emt 0:00:36]} 9. fxe3 {[%emt 0:00:06]} d6 {[%emt 0:00:15]} 10. a3 {[%emt 0:05:09]} Be6 {[%emt 0:00:15] C50: Hungarian Defence and Giuoco Pianissimo.} 11. Nd5 {[%emt 0:03:16]} Bxd5 {[%emt 0:04:34]} 12. Bxd5 {[%emt 0:03:42]} Nxd5 {[%emt 0:01:16] The position is equal.} 13. exd5 {[%emt 0:00:05]} Ne7 {[%emt 0:00:14]} 14. c4 {[%emt 0:01:06] [#]} f5 $146 {[%emt 0:06:42]} ({Predecessor:} 14... c6) 15. d4 {[%emt 0:07:11]} e4 {[%emt 0:04:46]} 16. Nd2 {[%emt 0:00:55][%cal Bf3d2,Bd2f1,Bf1e3,Be3f5][%mdl 32]} Qd7 {[%emt 0:10:20]} 17. h4 {[%emt 0:10:06]} ({Better is} 17. Qc2 $15) 17... f4 {[%emt 0:25:30]} 18. Rxf4 {[%emt 0:18:56]} Rxf4 {[%emt 0:01:36]} 19. exf4 {[%emt 0:00:04]} e3 {[%emt 0:01:49]} ({Black should try} 19... Rf8 $1 $15) 20. Nf1 $1 $11 {[%emt 0:01:20]} Qf5 {[%emt 0:15:51]} (20... Nf5 $11 21. Qd3 Re8) 21. Qf3 $14 {[%emt 0:03:39]} (21. Nxe3 Qxf4 22. Qd3 Rf8 $11) 21... Qc2 {[%emt 0:01:05]} 22. Nxe3 {[%emt 0:07:34]} Qxb2 {[%emt 0:00:14]} 23. Rd1 {[%emt 0:00:05]} Ng6 $2 {[%emt 0:09:12][%mdl 8192]} (23... Rf8 $11 {and Black is okay.}) 24. Qg4 $2 {[%emt 0:04:37]} (24. f5 $18 {and White stays clearly on top.} Nxh4 25. Qg4) 24... Qb3 $16 {[%emt 0:06:35]} 25. Nf5 {[%emt 0:13:02][%cal Og4g6]} (25. Qxg6 Qxe3+ 26. Kh2 Qxf4+ 27. Kh3 Qe3+ 28. g3 Qf2 $11) 25... Rf8 {[%emt 0:00:10][%cal Of8f5] White must now prevent ...Rxf5!} 26. Re1 $1 $40 {[%emt 0:00:31][%mdl 128] Black is in trouble.} (26. Qxg6 $6 Qxd1+ 27. Kh2 Rxf5 28. Qxf5 Qxd4 $11) 26... Qc3 $2 {[%emt 0:02:45][%mdl 8192] [#]} (26... Qc2 $16 {is more resistant.}) 27. Re4 $1 $18 {[%emt 0:03:01]} ({Worse is} 27. Qxg6 Qxe1+ 28. Kh2 Rxf5 29. Qxf5 Qxh4+ 30. Kg1 Qe1+ 31. Kh2 Qh4+ 32. Kg1 Qe1+ 33. Kh2 Qe3 $11) 27... Rf6 {[%emt 0:01:55]} 28. h5 {[%emt 0:00:50]} Qd3 {[%emt 0:01:02]} 29. Re8+ {[%emt 0:12:09]} Kf7 {[%emt 0:00:10]} 30. Re7+ {[%emt 0:01:14]} Kf8 {[%emt 0:00:45]} 31. hxg6 {[%emt 0:02:48] White wants to mate with Rf7+.} Qxf5 {[%emt 0:01:20]} 32. Qxf5 {[%emt 0:00:15]} ({Weaker is} 32. Qe2 Qxg6 33. Rxc7 (33. f5 Qxf5 34. Rxc7 Kg8 $11) 33... Rxf4 $16) 32... Rxf5 {[%emt 0:00:08]} 33. Rxc7 {[%emt 0:00:05]} Rxf4 {[%emt 0:00:20][%mdl 4096] Endgame KR-KR} 34. Rc8+ $2 {[%emt 0:01:29]} (34. c5 $18 Re4 35. Rf7+ Ke8 36. Rxg7) 34... Ke7 $11 {[%emt 0:00:08]} 35. Rc7+ {[%emt 0:00:02][%cal Bc8c7,Bc7g7,Bg7f7,Bf7f8][%mdl 32]} Kd8 $2 {[%emt 0:01:12][%mdl 8192]} (35... Kf8 $11) 36. Rxg7 $18 {[%emt 0:00:15] White is clearly winning.} Kc8 {[%emt 0:01:35]} 37. Rf7 {[%emt 0:00:14]} Rg4 {[%emt 0:00:37]} 38. g7 {[%emt 0:00:04] Rf8+ would kill now.} b5 {[%emt 0:00:20]} 39. cxb5 {[%emt 0:00:05]} axb5 {[%emt 0:00:11]} 40. Rf8+ {[%emt 0:00:04] Weighted Error Value: White=0.42/Black=0.73} 1-0

[Event "Germany Countries-chT Youth 2022"]
[Site "Wiesbaden"]
[Date "2022.10.02"]
[Round "3"]
[White "Huber, Benedikt"]
[Black "Falke, Ornella"]
[Result "1-0"]
[ECO "C50"]
[WhiteElo "2299"]
[BlackElo "1953"]
[Annotator "TA"]
[PlyCount "69"]
[EventDate "2022.09.28"]
[EventType "team-tourn"]
[EventRounds "7"]
[EventCountry "GER"]
[SourceTitle "playchess.com"]
[Source "ChessBase"]
[SourceQuality "1"]
[TimeControl "40/5400+30:1800+30"]

{[%evp 13,69,27,38,33,30,23,29,28,40,43,69,61,70,70,103,106,167,171,214,204,206,211,353,337,485,377,366,379,372,374,376,248,258,241,244,206,398,297,302,276,473,480,464,421,473,478,472,427,29989,1697,1649,1420,29985,29986,29989,29990,29990,29990]} 1. e4 {[%emt 0:00:03]} e5 {[%emt 0:00:44]} 2. Nf3 {[%emt 0:00:13]} Nc6 {[%emt 0:00:07]} 3. Bc4 {[%emt 0:00:11]} Nf6 {[%emt 0:00:27]} 4. d3 {[%emt 0:00:09]} Bc5 {[%emt 0:00:16]} 5. Bg5 {[%emt 0:00:09]} h6 {[%emt 0:01:37]} 6. Bh4 {[%emt 0:00:06]} d6 {[%emt 0:01:52]} 7. c3 {[%emt 0:00:33]} a6 {[%emt 0:01:56] 7...a5 is the modern continuation.} 8. Nbd2 {[%emt 0:00:31] C54: Giuoco Piano: 4 c3 Nf6, main lines with 5 d4 and 5 d3.} Ba7 {[%emt 0:01:15]} 9. O-O {[%emt 0:00:53]} g5 {[%emt 0:01:34]} 10. Bg3 {[%emt 0:00:05] White has an edge.} Na5 {[%emt 0:17:11]} 11. Bd5 {[%emt 0:07:51]} c6 {[%emt 0:01:38] [#]} 12. Bxf7+ {[%emt 0:00:18]} Kxf7 {[%emt 0:00:43]} 13. b4 {[%emt 0:00:06]} Be6 {[%emt 0:05:10][%cal Of7g8] [#]} 14. bxa5 $146 {[%emt 0:13:42]} ({Predecessor:} 14. Qa4 b5 15. Qxa5 Qxa5 16. bxa5 Nh5 17. Bxe5 dxe5 18. Nxe5+ Ke8 19. Nxc6 Nf4 20. a4 {½-½ (57) Sorroche Lupion,F (2361)-Marcotulli,G (2200) SEMI email 2001}) 14... Qxa5 {[%emt 0:00:26]} (14... Kg8 $16) 15. d4 {[%emt 0:00:11][%cal Bd3d4,Bd4e5,Be5f6][%mdl 32]} g4 {[%emt 0:13:35]} 16. dxe5 {[%emt 0:00:41]} gxf3 {[%emt 0:00:38]} 17. exf6 {[%emt 0:00:23]} Qxc3 {[%emt 0:00:55]} (17... fxg2 {might work better.} 18. Kxg2 Rad8) 18. Nxf3 {[%emt 0:07:24]} Rad8 {[%emt 0:07:35]} (18... Qxf6 $142 19. Rb1 (19. Qxd6 Rhe8 $18) 19... b5 20. Qxd6 Rhe8) 19. e5 {[%emt 0:05:39]} dxe5 {[%emt 0:11:48]} 20. Qe2 {[%emt 0:05:45]} (20. Bxe5 Rxd1 21. Bxc3 Rxf1+ 22. Rxf1 Bb8 $11) (20. Nxe5+ Qxe5 21. Bxe5 Rxd1 22. Rfxd1 (22. Raxd1 Bd5 $18) 22... Bd5 $18) (20. Qb1 Bd4 $18) 20... Bb8 {[%emt 0:03:22]} 21. Rfe1 {[%emt 0:23:42]} Rd5 {[%emt 0:02:44]} 22. Rac1 {[%emt 0:05:06]} Qd3 {[%emt 0:04:33]} 23. Qb2 {[%emt 0:01:21]} (23. Bxe5 Qxe2 24. Rxe2 Bxe5 25. Nxe5+ Kxf6 $11) (23. Nxe5+ Bxe5 24. Qh5+ (24. Bxe5 Qxe2 25. Rxe2 Rhd8 $11) 24... Qg6 25. Qxg6+ Kxg6 $14) 23... Rb5 {[%emt 0:01:28]} 24. Qa1 {[%emt 0:00:27]} Qf5 {[%emt 0:04:29]} (24... Re8 {is a better defense.} 25. a4 (25. Bxe5 Qxf3 26. gxf3 Bxe5 $18) (25. Nxe5+ Bxe5 26. Bxe5 Bd5 $16) 25... Rb3 26. Bxe5 (26. Nxe5+ Bxe5 27. Qxe5 Qg6 $18) 26... Qf5) 25. Bxe5 {[%emt 0:01:40]} Rg8 {[%emt 0:02:29] Hoping for ...Qxf3.} 26. Qc3 {[%emt 0:06:34] Dancing on a razor blade.} ({Not} 26. Nh4 $2 Qxe5 27. g3 (27. Rxe5 $2 Bxe5 28. Qb1 Rxb1 $19) 27... Qxf6 28. Qxf6+ Kxf6 $19) 26... Bd5 $2 {[%emt 0:06:37]} (26... Ba7 27. Qa3 Re8) 27. Bxb8 $18 {[%emt 0:06:18][%cal Be5b8,Bb8g3,Bg3h4][%mdl 32]} Qxf3 {[%emt 0:01:54][%csl Gd5,Gg8][%cal Rf3g2]} 28. Re7+ {[%emt 0:00:09]} ({Weaker is} 28. Qxf3 Bxf3 29. Bg3 Bd5 $11) 28... Kf8 {[%emt 0:00:10][%csl Gd5,Gg8][%cal Rf3g2] [#]} 29. Re8+ $3 {[%emt 0:02:27][%mdl 512]} Kf7 {[%emt 0:01:42][%csl Gd5,Gg8][%cal Rf3g2]} (29... Kxe8 $2 30. Qe5+ Kf7 31. Qe7+ Kg6 32. gxf3) 30. Qxf3 {[%emt 0:00:14]} Kxe8 {[%emt 0:03:04]} (30... Bxf3 $18 31. Rxg8 Kxg8 32. gxf3 Kf7) 31. Qe3+ {[%emt 0:00:40]} (31. Re1+ $142 Kf7 32. Qh5+ Kxf6 33. Qxh6+ Rg6 34. Be5+ Ke7 35. Qxg6 Be4 36. Qg7+ Ke6 37. Qf6+ Kd7 38. Qf7+ Kd8 39. Bf6+ Kc8 40. Qe8+ Kc7 41. Qd8#) 31... Kf7 {[%emt 0:00:21]} 32. Bg3 {[%emt 0:00:54] aiming for Re1.} Kxf6 {[%emt 0:01:21]} 33. Qxh6+ {[%emt 0:00:26] White mates.} Rg6 {[%emt 0:00:31]} 34. Qf8+ {[%emt 0:00:25]} Bf7 {[%emt 0:00:36]} 35. Bh4+ {[%emt 0:00:10] Black got outplayed after the opening.  Weighted Error Value: White=0.28 (precise) /Black=0.63} 1-0

[Event "Germany Countries-chT Youth 2022"]
[Site "Wiesbaden"]
[Date "2022.10.02"]
[Round "3"]
[White "Laux, Dominik"]
[Black "Popist, Florian"]
[Result "1/2-1/2"]
[ECO "B27"]
[WhiteElo "2248"]
[BlackElo "2187"]
[Annotator "TA"]
[PlyCount "68"]
[EventDate "2022.09.28"]
[EventType "team-tourn"]
[EventRounds "7"]
[EventCountry "GER"]
[SourceTitle "playchess.com"]
[Source "ChessBase"]
[SourceQuality "1"]
[TimeControl "40/5400+30:1800+30"]

{[%evp 15,68,-3,0,-12,-24,-58,-6,-11,0,-30,0,-26,-14,-37,-31,-22,-16,-22,0,0,0,-27,-33,-35,-20,-22,-17,-33,-34,-28,-14,-14,-14,-8,-8,-26,-26,-27,-33,-32,-10,-10,-8,-8,0,0,0,0,0,0,0,-6,-4,-29,-28]} 1. e4 {[%emt 0:00:20]} c5 {[%emt 0:00:11]} 2. Nf3 {[%emt 0:00:23]} g6 {[%emt 0:00:07]} 3. c3 {[%emt 0:06:47]} Bg7 {[%emt 0:00:35]} 4. d4 {[%emt 0:00:25]} cxd4 {[%emt 0:00:14]} 5. cxd4 {[%emt 0:00:03]} d5 {[%emt 0:00:15]} 6. e5 {[%emt 0:03:42]} Bg4 {[%emt 0:00:40]} 7. Be2 {[%emt 0:03:33]} Nc6 {[%emt 0:02:22]} 8. Nc3 {[%emt 0:01:50]} Nh6 {[%emt 0:01:52] was the old line (8...e6).} 9. Bxh6 {[%emt 0:09:26] B27: Sicilian: 2 Nf3, unusual Black 2nd moves.} Bxh6 {[%emt 0:00:37]} 10. Qb3 {[%emt 0:00:50][%csl LRb7,LRd5]} Bxf3 {[%emt 0:12:44]} (10... O-O $15 11. Rd1 Rb8) 11. Bxf3 $11 {[%emt 0:00:07] The position is equal.} e6 {[%emt 0:00:47]} 12. Rd1 {[%emt 0:04:40] [#]} Qd7 $146 {[%emt 0:15:46]} ({Predecessor:} 12... Qe7 13. Bxd5 O-O 14. Bxc6 bxc6 15. O-O Rab8 16. Qc2 Rfd8 17. Ne4 Qb4 18. Nf6+ Kh8 {1-0 (27) Sibt,A (2071)-Al Busaidi,H (1651) Chess.com INT 2020}) 13. Be2 {[%emt 0:04:31]} O-O {[%emt 0:02:05]} 14. Na4 {[%emt 0:07:52]} Qe7 {[%emt 0:02:18]} 15. O-O {[%emt 0:05:52]} Rfc8 {[%emt 0:07:41][%cal Ob7b5]} 16. a3 {[%emt 0:02:21]} Rc7 {[%emt 0:07:57]} 17. Qh3 {[%emt 0:07:35]} Bf8 {[%emt 0:01:04]} 18. Qe3 {[%emt 0:12:02]} Rac8 {[%emt 0:06:15]} 19. Qd2 {[%emt 0:05:55]} Qe8 {[%emt 0:08:18][%cal Oc6e5] ...Nxe5! is the strong threat.} 20. Nc3 {[%emt 0:00:16]} a6 {[%emt 0:03:07]} 21. Rc1 {[%emt 0:03:13]} b5 {[%emt 0:00:49]} 22. Na2 {[%emt 0:01:00]} Nb8 {[%emt 0:03:58]} 23. Rxc7 {[%emt 0:01:47]} Rxc7 {[%emt 0:00:02]} 24. Rc1 $1 {[%emt 0:01:04]} Qd8 {[%emt 0:05:06]} 25. Rxc7 {[%emt 0:04:55]} Qxc7 {[%emt 0:00:03]} 26. Nc1 $1 {[%emt 0:01:37]} Nc6 {[%emt 0:01:57][%cal Oc6d4] Hoping for ...Nxd4!} 27. Nb3 {[%emt 0:01:10]} Qb6 {[%emt 0:00:54]} 28. Qd3 $1 {[%emt 0:00:43]} Be7 {[%emt 0:03:14]} 29. g3 {[%emt 0:00:45]} Na7 {[%emt 0:02:07]} 30. Kg2 {[%emt 0:04:51]} Kg7 {[%emt 0:02:41]} 31. f4 {[%emt 0:00:57]} Nc6 {[%emt 0:02:02]} 32. Kf1 {[%emt 0:01:50]} Na5 {[%emt 0:01:23]} 33. Nxa5 {[%emt 0:00:40]} Qxa5 {[%emt 0:00:03]} 34. Bd1 {[%emt 0:00:11]} Qc7 {[%emt 0:04:04] Weighted Error Value: White=0.07 (flawless) /Black=0.10 (very precise)} 1/2-1/2

[Event "Germany Countries-chT Youth 2022"]
[Site "Wiesbaden"]
[Date "2022.10.02"]
[Round "3"]
[White "von Mettenheim, Johannes"]
[Black "Gluma, Christian"]
[Result "1/2-1/2"]
[ECO "B06"]
[WhiteElo "2231"]
[BlackElo "2107"]
[Annotator "TA"]
[PlyCount "94"]
[EventDate "2022.09.28"]
[EventType "team-tourn"]
[EventRounds "7"]
[EventCountry "GER"]
[SourceTitle "playchess.com"]
[Source "ChessBase"]
[SourceQuality "1"]
[TimeControl "40/5400+30:1800+30"]

{[%evp 16,94,28,22,13,11,14,0,34,-6,32,19,11,4,42,33,50,0,0,-8,0,0,0,15,10,2,14,12,12,13,15,0,0,0,30,39,77,73,72,59,66,22,20,25,41,-14,-18,-39,-45,-42,-52,-77,-59,-129,-120,-130,-114,-108,-91,-188,-188,-238,-234,-233,-90,-164,0,0,0,0,0,0,0,0,0,0,0,0,0,0,0]} 1. d4 {[%emt 0:00:03]} g6 {[%emt 0:00:04]} 2. e4 {[%emt 0:00:31]} Bg7 {[%emt 0:00:08]} 3. Nc3 {[%emt 0:00:13]} c6 {[%emt 0:00:09]} 4. Nf3 {[%emt 0:01:46]} d5 {[%emt 0:00:07]} 5. h3 {[%emt 0:01:47]} dxe4 {[%emt 0:06:17]} 6. Nxe4 {[%emt 0:00:09]} Nf6 {[%emt 0:00:14]} 7. Nxf6+ {[%emt 0:00:09]} exf6 {[%emt 0:00:05]} 8. Bd3 {[%emt 0:00:42]} O-O {[%emt 0:00:09]} 9. O-O {[%emt 0:00:06] Active counter play!} a5 {[%emt 0:00:34] B15: Caro-Kann: 3 Nc3: 3...g6 and 3...dxe4 4 Nxe4 Nf6 5 Nxf6+ exf6.} 10. Bf4 {[%emt 0:02:21] was the old line (10.Re1).} Na6 {[%emt 0:00:41]} 11. c3 {[%emt 0:04:46]} Be6 {[%emt 0:03:43]} 12. Qc2 {[%emt 0:02:14] [#]} Qb6 $146 {[%emt 0:08:43]} ({Predecessor:} 12... Qd7 13. Rfe1 Rfe8 14. Nd2 f5 15. Nf3 f6 16. Nd2 Kh8 17. Nc4 Bxc4 18. Bxc4 b5 {½-½ (25) Luther,T (2559)-Reschke,S (2365) Germany 2014}) 13. Rfd1 {[%emt 0:10:46]} Rfd8 {[%emt 0:05:38]} 14. Nd2 {[%emt 0:01:50]} Rd7 {[%emt 0:13:00]} 15. Ne4 {[%emt 0:09:09]} f5 {[%emt 0:08:49]} 16. Nd2 {[%emt 0:03:45]} (16. Ng5 $1 $14) 16... c5 {[%emt 0:04:09]} 17. dxc5 {[%emt 0:01:13]} Nxc5 {[%emt 0:04:20]} 18. Bf1 {[%emt 0:00:08]} Bd5 {[%emt 0:08:24]} 19. Nc4 {[%emt 0:03:33]} Qe6 {[%emt 0:03:13]} 20. Qe2 {[%emt 0:00:17]} Na4 {[%emt 0:14:29]} 21. Ne3 {[%emt 0:11:10]} Bc6 {[%emt 0:03:13]} 22. Rxd7 {[%emt 0:03:51]} Qxd7 {[%emt 0:00:45]} 23. Nc4 {[%emt 0:06:28]} Bb5 {[%emt 0:04:19]} 24. Qc2 {[%emt 0:01:14]} Bxc4 {[%emt 0:02:59]} 25. Bxc4 {[%emt 0:00:08]} Nb6 {[%emt 0:04:30]} 26. Rd1 {[%emt 0:02:21]} Qe8 {[%emt 0:01:10]} 27. Be2 {[%emt 0:00:33]} Rd8 {[%emt 0:01:53]} 28. Bc7 {[%emt 0:02:58] This bishop pair is nice.} Rxd1+ {[%emt 0:00:39]} 29. Qxd1 {[%emt 0:00:06]} Na4 {[%emt 0:00:51]} 30. Bb5 {[%emt 0:00:43]} Nxb2 $11 {[%emt 0:00:34]} (30... Qxb5 $2 31. Qd8+ Bf8 32. Bd6 $18) 31. Qd2 {[%emt 0:07:17]} Bxc3 $1 {[%emt 0:00:50]} (31... Qxb5 $2 32. Qd8+ Bf8 33. Bd6 $18) 32. Qxc3 {[%emt 0:00:05]} Qxb5 $15 {[%emt 0:00:10][%mdl 4096] Endgame KQB-KQN} 33. Qd4 {[%emt 0:11:42]} Nc4 {[%emt 0:01:06]} 34. Bf4 {[%emt 0:00:08]} ({White should play} 34. Qd8+ $15 Kg7 35. Qd4+ f6 36. Bd8) 34... Qb1+ $17 {[%emt 0:00:45]} 35. Kh2 {[%emt 0:00:05]} Qe4 {[%emt 0:00:10]} (35... Qxa2 $2 {is a self mate.} 36. Bh6 f6 37. Qd5+ Kh8 38. Qd8#) 36. Qd8+ {[%emt 0:00:05]} Kg7 {[%emt 0:00:07]} 37. Bg5 {[%emt 0:00:14]} (37. Kg3 $17) 37... Qe5+ $19 {[%emt 0:00:31]} 38. f4 {[%emt 0:00:19]} (38. Kg1 $142) 38... Qd6 {[%emt 0:00:23] Strongly threatening ...Qxd8.} 39. Qc8 {[%emt 0:00:40]} Nd2 {[%emt 0:01:20]} (39... b5 $19 {has better winning chances. Hoping for ...a4.} 40. Kh1 a4) 40. Qxb7 {[%emt 0:04:39] [#]} (40. Qc3+ $17 f6 41. Bxf6+ Qxf6 42. Qxd2) 40... h6 $2 {[%emt 0:00:36]} (40... Qd4 $1 $19 {And now ...h6 would win.} 41. Qb8 Nf1+ 42. Kh1 Ng3+ 43. Kh2 Ne2 44. Qe5+ Qxe5 45. fxe5 Kf8) 41. Qb2+ $11 {[%emt 0:30:25] The position is equal.} Kh7 {[%emt 0:30:23]} 42. Bxh6 {[%emt 0:02:19][%csl Gh6][%cal Rb2g7]} f6 {[%emt 0:00:11]} 43. Bf8 {[%emt 0:00:09] White threatens Qb7+ and mate.} Qxf4+ {[%emt 0:00:59]} 44. Kh1 {[%emt 0:00:14] [#] Intending Qb7+ and mate.} Qf1+ {[%emt 0:00:29]} 45. Kh2 {[%emt 0:00:05] Threatening mate with Qb7+.} Qf4+ {[%emt 0:00:27]} 46. Kh1 {[%emt 0:00:05]} Qf1+ {[%emt 0:00:00]} 47. Kh2 {[%emt 0:00:00] White wants to mate with Qb7+.} Qf4+ {[%emt 0:00:00] Weighted Error Value: White=0.20 (precise) /Black=0.17 (very precise)} 1/2-1/2